Workbook

Sheet Sheet1
A1: 2025年生产部2月接收处置记录统计表 | R1: 自产废物
A2: 废物名称 | B2: 危废代码 | C2: 形态 | D2: 上月结存 | E2: 本月接收量 | F2: 处置量及工艺 | J2: 库存量 | K2: 1#库 | L2: 2#库 | M2: 干化 | N2: 罐区 | O2: 料坑 | R2: 废物名称 | S2: 上月结存 | T2: 本月产生量 | U2: 包数 | V2: 本月处理 | Y2: 库存 | Z2: 备注 | AA2: 存储位置
F3: 固废焚烧 | G3: 废液焚烧 | H3: 清洗大桶 | I3: 污泥干化 | K3: 1#库 | L3: 2#库 | M3: 干化 | N3: 罐区 | O3: 料坑 | V3: 焚烧处置 | W3: 液体炉 | X3: 拉运
A4: 含乙二醇废液 | B4: 271-001-02 | C4: 液态 | D4: 1.206 | J4: =D4+E4-F4-G4-H4-I4 -> 1.206 | K4: 1.206 | P4: =K4+L4+M4+N4+O4 -> 1.206 | R4: 炉渣（回转窑） | S4: 236.65 | T4: =100.825-22.56 -> 78.265 | U4: =85-18 -> 67 | X4: 157.44 | Y4: =S4+T4-V4-X4-W4 -> 157.475
A5: 反应残渣2 | B5: 271-001-02 | C5: 固态 | D5: 0.52 | F5: =0.52 -> 0.52 | J5: 0 | P5: 0 | R5: 飞灰（回转窑） | S5: 14.13 | T5: 15.67 | U5: 35 | Y5: 29.8
A6: 反应残渣3 | B6: 271-001-02 | C6: 半固态 | D6: 11.648 | F6: =7.956 -> 7.956 | J6: 3.692 | K6: 3.692 | P6: 3.692 | R6: 飞灰（废液炉） | S6: 0.865 | T6: 0.34 | U6: 1 | Y6: 1.205
A7: 废有机溶剂 | B7: 271-002-02 | C7: 液态 | D7: 0 | J7: 0 | P7: 0 | R7: 废油渣/泥 | S7: 0 | Y7: 0 | Z7: 精馏切水后剩下的罐底泥
A8: 过滤介质 | B8: 271-003-02 | C8: 固态 | D8: 0 | J8: 0 | P8: 0 | R8: 含油污水 | S8: 0 | T8: 1.56 | V8: 1.56 | Y8: 0 | Z8: 蒸汽清洗过程 | AA8: 2#库
A9: 废盐 | B9: 271-005-02 | C9: 固态 | D9: 0 | J9: 0 | P9: 0 | R9: 废商标 | S9: 0 | T9: 0.3 | V9: 0.3 | Y9: 0 | Z9: 除商标 | AA9: 2#库
A10: 实验室废液 | B10: 900-002-03 | C10: 液态 | D10: 102.144 | J10: 102.144 | L10: 102.144 | P10: 102.144 | R10: 废残液 | S10: 0 | T10: 1.26 | V10: 1.26 | Y10: 0 | Z10: 抽残液 | AA10: 2#库
A11: 高危化学品 | B11: 900-002-03 | C11: 半固态 | D11: 0 | J11: 0 | P11: 0 | R11: 废渣 | S11: 0 | T11: 0.46 | V11: 0.46 | Y11: 0 | Z11: 清洗过程 | AA11: 2#库
A12: 一般废药品 | B12: 900-002-03 | C12: 固态 | D12: 0 | E12: =0.004 -> 0.004 | J12: 0.004 | L12: 0.004 | P12: 0.004 | R12: 漆渣 | S12: 0 | Y12: 0 | Z12: 清洗过程
A13: 磷化铝、杀虫剂 | B13: 900-003-04 | C13: 固态 | D13: 0 | E13: =0.14 -> 0.14 | J13: 0.14 | K13: 0.14 | P13: 0.14 | R13: 污水厂污泥 | S13: 0 | Y13: 0 | Z13: 水处理后产生的污泥 | AA13: 2#库
A14: 废药物、药品 杀虫剂、磷化铝等 | B14: 900-003-04 | C14: 半固态 | D14: 0 | J14: 0 | P14: 0 | R14: 废清洗剂 | S14: 0 | Y14: 0 | Z14: 清洗剂清洗过程
A15: 废盐 | B15: 263-008-04 | C15: 固态 | D15: 0 | J15: 0 | P15: 0
A16: 蒸馏残液 | B16: 263-008-04 | C16: 半固态 | D16: 0 | J16: 0 | P16: 0
A17: 废渣 | B17: 263-009-04 | C17: 固态 | D17: 0 | J17: 0 | P17: 0
A18: 污泥 | B18: 263-011-04 | C18: 固态 | D18: 0 | J18: 0 | P18: 0
A19: 废弃木材 | B19: 201-003-05 | C19: 固态 | D19: 0 | J19: 0 | P19: 0
A20: 废有机溶剂 | B20: 900-401-06 | C20: 液态 | D20: 0 | J20: 0 | P20: 0
A21: 废有机溶剂及废物 | B21: 900-402-06 | C21: 液态 | D21: 68.621 | E21: =5.065+0.838+3.461 -> 9.364 | J21: 77.985 | L21: 77.985 | P21: 77.985
A22: 清洗剂、渗透剂包装物 | B22: 900-402-06 | C22: 固态 | D22: 0 | J22: 0 | P22: 0
A23: 废有机溶剂 | B23: 900-404-06 | C23: 液态 | D23: 10.732 | F23: =1.08 -> 1.08 | J23: 9.652 | L23: 9.652 | P23: 9.652
A24: 定期更换的活性炭 | B24: 900-405-06 | C24: 固态 | D24: 0 | J24: 0 | P24: 0
A25: 丙烯酸甲酯聚合物 | B25: 900-407-06 | C25: 固态 | D25: 0 | J25: 0 | P25: 0
A26: 废有机溶剂 | B26: 900-407-06 | C26: 液态 | D26: 142.1371 | E26: =27.04+14.54 -> 41.58 | J26: 183.7171 | L26: 183.7171 | P26: 183.7171
A27: 污泥 | B27: 900-409-06 | C27: 半固态 | D27: 0 | J27: 0 | P27: 0
A28: 油污水 | B28: 251-001-08 | C28: 液态 | D28: 703.19 | J28: 703.19 | N28: =703.19-50 -> 653.19 | O28: 50 | P28: 703.19
A29: 清罐油渣 | B29: 251-002-08 | C29: 固态 | D29: 0 | J29: 0 | P29: 0
A30: 浮渣、污泥 | B30: 251-003-08 | C30: 固态 | D30: 0 | J30: 0 | P30: 0
A31: 废滤芯 | B31: 251-012-08 | C31: 固态 | D31: 0 | J31: 0 | P31: 0
A32: 废溶剂油 | B32: 291-001-08 | C32: 液态 | D32: 0 | J32: 0 | P32: 0
A33: 废溶剂油 | B33: 291-001-08 | C33: 半固态 | D33: 42.8 | F33: =13+5.26+11 -> 29.26 | J33: 13.54 | K33: 13.54 | P33: 13.54
A34: 油泥、油脚 | B34: 071-001-08 | C34: 液态 | D34: 0 | J34: 0 | P34: 0
A35: 含油泥浆 | B35: 071-002-08 | C35: 液态 | D35: 1125.3 | J35: 1125.3 | N35: 1125.3 | P35: 1125.3
A36: 含油岩屑 | B36: 071-002-08 | C36: 半固态 | D36: 275.214 | F36: =15.5+5.54+11.08+7.75+9.97 -> 49.84 | J36: 225.374 | M36: 225.374 | P36: 225.374
A37: 废油泥 | B37: 900-200-08 | C37: 半固态 | D37: 0.81 | J37: 0.81 | L37: 0.81 | P37: 0.81
A38: 研磨泥 | B38: 900-200-08 | C38: 固态 | D38: 0 | E38: =7.35 -> 7.35 | J38: 7.35 | L38: 7.35 | P38: 7.35
A39: HW08废油 | B39: 900-200-08 | C39: 液态 | D39: 119.098 | E39: =27.36 -> 27.36 | F39: =4.26+3.02+6.96+10.398+4.36+10 -> 38.998 | J39: 107.46 | K39: 13 | N39: 94.46 | P39: 107.46
A40: 废煤油 | B40: 900-201-08 | C40: 液态 | D40: 3.86 | G40: =2.24 -> 2.24 | J40: 1.62 | L40: 1 | N40: 0.62 | P40: 1.62
A41: 油泥 | B41: 900-201-08 | C41: 半固态 | D41: 0 | J41: 0 | P41: 0
A42: 废润滑油废浮渣 | B42: 900-209-08 | C42: 半固态 | D42: 0.082 | E42: =0.043 -> 0.043 | F42: =0.082+0.043 -> 0.125 | J42: 0 | P42: 0
A43: 水处理浮渣及污泥 | B43: 900-210-08 | C43: 半固态 | D43: 268.56 | E43: =7.048+0.132+7 -> 14.18 | F43: =7.048+8.42+0.132 -> 15.6 | J43: 267.14 | K43: 7 | N43: =260.14-60 -> 200.14 | O43: 60 | P43: 267.14
A44: 废机油、含油废水 | B44: 900-210-08 | C44: 液态 | D44: 77.92 | J44: 77.92 | L44: 59.9 | N44: 18.02 | P44: 77.92
A45: 废油泥 | B45: 900-210-08 | C45: 固态 | D45: 84.93 | E45: =3.925+9.2775 -> 13.2025 | F45: =5.03 -> 5.03 | J45: 93.1025 | K45: 45.3 | L45: =47.8025-30 -> 17.8025 | O45: 30 | P45: 93.1025
A46: 废水处理过程产废油、油泥、浮渣 | B46: 900-210-08 | C46: 液态 | D46: 0 | J46: 0 | P46: 0
A47: 废白土 | B47: 900-213-08 | C47: 固态 | D47: 0 | J47: 0 | P47: 0
A48: 废机油 | B48: 900-213-08 | C48: 液态 | D48: 0 | J48: 0 | P48: 0
A49: 废矿物油 | B49: 900-214-08 | C49: 液态 | D49: 98.64809 | E49: =0.4199 -> 0.4199 | G49: =2.605+1.02595 -> 3.63095 | J49: 95.43704 | N49: 95.43704 | P49: 95.43704
A50: 废锂基脂 | B50: 900-214-08 | C50: 半固态 | D50: 2.1 | F50: =1.3+0.8 -> 2.1 | J50: 0 | P50: 0
A51: 废矿物油 | B51: 900-217-08 | C51: 液态 | D51: 59.8485 | E51: =0.3 -> 0.3 | G51: =1.2 -> 1.2 | J51: 58.9485 | N51: 58.9485 | P51: 58.9485
A52: 废甘油 | B52: 900-217-08 | C52: 半固态 | D52: 0 | J52: 0 | P52: 0
A53: 废液压油 | B53: 900-218-08 | C53: 液态 | D53: 50.525 | E53: =0.8 -> 0.8 | J53: 51.325 | N53: 51.325 | P53: 51.325
A54: 废冷冻机油 | B54: 900-219-08 | C54: 液态 | D54: 11.06 | G54: =5.5 -> 5.5 | J54: 5.56 | N54: 5.56 | P54: 5.56
A55: 废矿物油与含矿物油废物 | B55: 900-220-08 | C55: 液态 | D55: 8.609 | J55: 8.609 | N55: 8.609 | P55: 8.609
A56: 清罐污泥 | B56: 900-220-08 | C56: 固态 | D56: 0 | J56: 0 | P56: 0
A57: 废油泥 | B57: 900-221-08 | C57: 半固态 | D57: 0 | J57: 0 | P57: 0
A58: 废矿物油 | B58: 900-249-08 | C58: 液态 | D58: 306.21168 | E58: =0.3+0.0302 -> 0.3302 | F58: =6.34 -> 6.34 | G58: =0.66+3.3536 -> 4.0136 | J58: 296.18828 | L58: =185.28-20 -> 165.28 | N58: 110.90828 | O58: 20 | P58: 296.18828
A59: 废矿物油、废油桶 | B59: 900-249-08 | C59: 固态 | D59: 30.16 | E59: =0.101+8.16+6.9 -> 15.161 | F59: =0.1+0.001+8.16 -> 8.261 | J59: 37.06 | K59: 6.9 | L59: =30.16-15 -> 15.16 | O59: 15 | P59: 37.06
A60: 废矿物油、油泥 | B60: 900-249-08 | C60: 半固态 | D60: 0 | J60: 0 | P60: 0
A61: 废水、乳化液 | B61: 900-007-09 | C61: 液态 | D61: 186.7923 | E61: =1.145+0.948+4.227+0.213+2.174 -> 8.707 | J61: 195.4993 | L61: =195.4993-30 -> 165.4993 | O61: 30 | P61: 195.4993
A62: 沉淀渣 | B62: 900-007-09 | C62: 固态 | D62: 0 | J62: 0 | P62: 0
A63: 废乳化液 | B63: 900-005-09 | C63: 液态 | D63: 0 | J63: 0 | P63: 0
A64: 废乳化液 | B64: 900-006-09 | C64: 液态 | D64: 313.537 | E64: =2.2+6.2+16.7 -> 25.1 | F64: =3.64 -> 3.64 | G64: =15.76 -> 15.76 | J64: 319.237 | L64: 319.237 | P64: 319.237
A65: 砂轮沫 | B65: 900-006-09 | C65: 固态 | D65: 0 | J65: 0 | P65: 0
A66: 废焦油渣 | B66: 252-005-11 | C66: 固态 | D66: 43.52 | F66: =12 -> 12 | J66: 31.52 | K66: 31.52 | P66: 31.52
A67: 煤焦油、釜残 | B67: 900-013-11 | C67: 固态 | D67: 0 | J67: 0 | P67: 0
A68: 煤焦油 | B68: 900-013-11 | C68: 液态 | D68: 1 | E68: =5.81 -> 5.81 | F68: =0.985+2.935 -> 3.92 | J68: =D68+E68-F68-G68-H68-I68 -> 2.89 | K68: 2.89 | P68: =K68+L68+M68+N68+O68 -> 2.89
A69: 釜残 | B69: 900-013-11 | C69: 半固态 | D69: 321.5 | F69: =5+17.36+4.98 -> 27.34 | J69: 294.16 | K69: 294.16 | P69: 294.16
A70: 煤焦油 | B70: 451-003-11 | C70: 半固态 | D70: 0 | J70: 0 | P70: 0
A71: 煤焦油 | B71: 451-003-11 | C71: 液态 | D71: 70.28 | F71: =5+5+8.26 -> 18.26 | J71: 52.02 | L71: 52.02 | P71: 52.02
A72: 焦油渣 | B72: 451-003-11 | C72: 固态 | D72: 0 | J72: 0 | P72: 0
A73: 焦油渣 | B73: 451-001-11 | C73: 半固态 | D73: 15 | F73: =15 -> 15 | J73: 0 | P73: 0
A74: 漆渣 | B74: 900-250-12 | C74: 固态 | D74: 17.1 | E74: =25.38 -> 25.38 | F74: =5+12.1 -> 17.1 | J74: 25.38 | K74: 25.38 | P74: 25.38
A75: 漆渣 | B75: 900-250-12 | C75: 半固态 | D75: 0 | E75: =0.67 -> 0.67 | F75: =0.67 -> 0.67 | J75: 0 | P75: 0
A76: 油漆渣 | B76: 900-251-12 | C76: 固态 | D76: 0 | J76: 0 | P76: 0
A77: 废彩涂液 | B77: 900-252-12 | C77: 液态 | D77: 57.9 | J77: 57.9 | K77: 57.9 | P77: 57.9
A78: 废漆渣 | B78: 900-252-12 | C78: 固态 | D78: 149.725 | E78: =16.17+20.48+3.7+2.22+63.0145+25.268+22.395+1.1055+24.34 -> 178.693 | F78: =11.593+19.81+42.512+58.94+23.298+30.899 -> 187.052 | J78: 141.366 | K78: 119.716 | L78: 21.65 | P78: 141.366
A79: 漆渣 | B79: 900-252-12 | C79: 半固态 | D79: 0 | E79: =0.12 -> 0.12 | F79: =0.12 -> 0.12 | J79: 0 | P79: 0
A80: 废油墨 | B80: 900-253-12 | C80: 液态 | D80: 0 | J80: 0 | P80: 0
A81: 废浆 | B81: 900-253-12 | C81: 固态 | D81: 0 | J81: 0 | P81: 0
A82: 原材料废包装袋 | B82: 900-255-12 | C82: 固态 | D82: 0 | J82: 0 | P82: 0
A83: 废油漆 | B83: 900-256-12 | C83: 液态 | D83: 0 | J83: 0 | P83: 0
A84: 废油漆 | B84: 900-256-12 | C84: 半固态 | D84: 0 | J84: 0 | P84: 0
A85: 油墨渣子、油漆 | B85: 900-299-12 | C85: 半固态 | D85: 0 | J85: 0 | P85: 0
A86: 硒鼓墨盒 | B86: 900-299-12 | C86: 固态 | D86: 0.201 | E86: =0.00247 -> 0.00247 | F86: =0.011+0.00247 -> 0.01347 | J86: 0.19 | K86: 0.19 | P86: 0.19
A87: 油漆渣 | B87: 900-299-12 | C87: 液态 | D87: 4 | J87: 4 | K87: 2.4 | L87: 1.6 | P87: 4
A88: 废油墨 | B88: 264-011-12 | C88: 液态 | D88: 0 | J88: 0 | P88: 0
A89: 油墨渣 | B89: 264-011-12 | C89: 固态 | D89: 0 | J89: 0 | P89: 0
A90: 污泥 | B90: 264-012-12 | C90: 固态 | D90: 0 | J90: 0 | P90: 0
A91: 废漆渣稀释剂混合物 | B91: 264-013-12 | C91: 液态 | D91: 0 | J91: 0 | P91: 0
A92: 发泡废料，废胶水 | B92: 900-014-13 | C92: 半固态 | D92: 0 | E92: =0.42 -> 0.42 | F92: =0.42 -> 0.42 | J92: 0 | P92: 0
A93: 废胶水 | B93: 900-014-13 | C93: 液态 | D93: 0 | J93: 0 | P93: 0
A94: 发泡废料，废胶水 | B94: 900-014-13 | C94: 固态 | D94: 30.4 | E94: =6.86+5.14+6+5.58 -> 23.58 | F94: =16.78+6.62+22.18+2.82 -> 48.4 | J94: 5.58 | K94: 5.58 | P94: 5.58
A95: 废树脂 | B95: 900-015-13 | C95: 固态 | D95: 0 | J95: 0 | P95: 0
A96: 废树脂 | B96: 900-015-13 | C96: 半固态 | D96: 0 | J96: 0 | P96: 0
A97: 废水 | B97: 900-016-13 | C97: 液态 | D97: 2 | J97: 2 | K97: 2 | P97: 2
A98: 有机树脂废物 | B98: 900-016-13 | C98: 半固态 | D98: 0 | J98: 0 | P98: 0
A99: 树脂胶 | B99: 265-101-13 | C99: 固态 | D99: 0 | J99: 0 | P99: 0
A100: 不合格有机树脂 | B100: 265-101-13 | C100: 半固态 | D100: 0 | J100: 0 | P100: 0
A101: 废母液 | B101: 265-102-13 | C101: 液态 | D101: 38.76 | F101: =8.44+4+11.32 -> 23.76 | J101: 15 | K101: 15 | P101: 15
A102: 含盐废水 | B102: 265-103-13 | C102: 液态 | D102: 0 | J102: 0 | P102: 0
A103: 釜残与滤渣 | B103: 265-103-13 | C103: 半固态 | D103: 0 | J103: 0 | P103: 0
A104: 产品水解物、氯化镁盐 | B104: 265-103-13 | C104: 固态 | D104: 0 | J104: 0 | P104: 0
A105: 污泥 | B105: 265-104-13 | C105: 半固态 | D105: 0 | J105: 0 | P105: 0
A106: 污水处理站污泥 | B106: 265-104-13 | C106: 固态 | D106: 0 | J106: 0 | P106: 0
A107: 印刷版 | B107: 231-002-16 | C107: 固态 | D107: 0 | J107: 0 | P107: 0
A108: 废定影液 | B108: 266-009-16 | C108: 液态 | D108: 0 | J108: 0 | P108: 0
A109: 废胶片 | B109: 266-009-16 | C109: 固态 | D109: 0 | J109: 0 | P109: 0
A110: 废显影液 | B110: 900-019-16 | C110: 液态 | D110: 0 | J110: 0 | P110: 0
A111: 废显影液 | B111: 398-001-16 | C111: 液态 | D111: 0 | J111: 0 | P111: 0
A112: 助镀再生废渣 | B112: 336-051-17 | C112: 固态 | D112: 0 | J112: 0 | P112: 0
A113: 含铬污泥 | B113: 336-060-17 | C113: 固态 | D113: 0 | J113: 0 | P113: 0
A114: 镀铜溶液 | B114: 336-062-17 | C114: 液态 | D114: 0 | J114: 0 | P114: 0
A115: 含铜污泥 | B115: 336-062-17 | C115: 固态 | D115: 0 | J115: 0 | P115: 0
A116: 电镀污泥 | B116: 336-052-17 | C116: 固态 | D116: 32.32 | E116: =31.78 -> 31.78 | F116: =32.32 -> 32.32 | J116: 31.78 | L116: =31.78-31.78 -> 0 | O116: 31.78 | P116: 31.78
A117: 污泥 | B117: 336-053-17 | C117: 固态 | D117: 0 | J117: 0 | P117: 0
A118: 镀镍废液 | B118: 336-055-17 | C118: 液态 | D118: 11 | J118: 11 | L118: 11 | P118: 11
A119: 镀铁电解液 | B119: 336-063-17 | C119: 液态 | D119: 48.53 | F119: =6.46+5+5 -> 16.46 | J119: 32.07 | L119: 18.07 | O119: 14 | P119: 32.07
A120: 电镀污泥 | B120: 336-063-17 | C120: 半固态 | D120: 0 | J120: 0 | P120: 0
A121: 电镀污泥 | B121: 336-063-17 | C121: 固态 | D121: 0 | J121: 0 | P121: 0
A122: 磷化污泥 | B122: 336-064-17 | C122: 固态 | D122: 4 | E122: =9.86 -> 9.86 | F122: =4 -> 4 | J122: 9.86 | L122: 9.86 | P122: 9.86
A123: 金属表面处理污泥 | B123: 336-064-17 | C123: 半固态 | D123: 0 | J123: 0 | P123: 0
A124: 金属表面处理污泥 | B124: 336-064-17 | C124: 液态 | D124: 11.02 | F124: =1.52 -> 1.52 | J124: 9.5 | L124: 9.5 | P124: 9.5
A125: 污泥 | B125: 336-069-17 | C125: 半固态 | D125: 0 | J125: 0 | P125: 0
A126: 污泥 | B126: 336-069-17 | C126: 液态 | D126: 25.58 | J126: 25.58 | L126: 25.58 | P126: 25.58
A127: 污泥 | B127: 336-069-17 | C127: 固态 | D127: 0 | J127: 0 | P127: 0
A128: 活性炭 | B128: 772-005-18 | C128: 固态 | D128: 0 | J128: 0 | P128: 0
A129: 废UV灯管 | B129: 900-023-29 | C129: 固态 | D129: 0 | J129: 0 | P129: 0
A130: 废碱液 | B130: 251-015-35 | C130: 液态 | D130: 26.08 | F130: =12.58+10.5+3 -> 26.08 | J130: 0 | P130: 0
A131: 废碱泥 | B131: 251-015-35 | C131: 半固态 | D131: 16.84 | J131: 16.84 | L131: 16.84 | P131: 16.84
A132: 片碱袋 | B132: 900-399-35 | C132: 固态 | D132: 0 | J132: =D132+E132-F132-G132-H132-I132 -> 0 | P132: =K132+L132+M132+N132+O132 -> 0
A133: 清洁剂 | B133: 900-399-35 | C133: 液态 | D133: 0 | J133: 0 | P133: 0
A134: 废硫氢化钠残渣 | B134: 900-399-35 | C134: 半固态 | D134: 0 | J134: 0 | P134: 0
A135: 废碱液 | B135: 900-352-35 | C135: 液态 | D135: 0 | J135: 0 | P135: 0
A136: 废碱液 | B136: 900-354-35 | C136: 液态 | D136: 0 | J136: =D136+E136-F136-G136-H136-I136 -> 0 | P136: 0
A137: 废抗燃油 | B137: 900-033-37 | C137: 液态 | D137: 0 | J137: 0 | P137: 0
A138: 含酚废水 | B138: 261-070-39 | C138: 液态 | D138: 212.86 | F138: =17.02 -> 17.02 | J138: 195.84 | N138: 195.84 | P138: 195.84
A139: 废活性炭 | B139: 261-071-39 | C139: 固态 | D139: 0 | J139: 0 | P139: 0
A140: 污泥 | B140: 261-084-45 | C140: 半固态 | D140: 37.8 | J140: 37.8 | L140: 37.8 | P140: 37.8
A141: 含油废物 | B141: 900-041-49 | C141: 固态 | D141: 224.743 | E141: =4.0425+0.756+3.563+20.7795+6.538+4.7355+15.28924+15.838+7.434+10.014 -> 88.98974 | F141: =8.925+29.0485+2.003+19.4585+16.0545+13.79924+7 -> 96.28874 | H141: =3.563+2.971+6.198 -> 12.732 | J141: 204.712 | K141: 202.103 | L141: 2.609 | P141: 204.712
A142: 含有或沾染危险废物的废弃物 | B142: 900-041-49 | C142: 半固态 | D142: 0 | J142: 0 | P142: 0
A143: 电捕焦油 | B143: 900-041-49 | C143: 液态 | D143: 0 | J143: 0 | P143: 0
A144: 废酸碱袋 | B144: 900-042-49 | C144: 固态 | D144: 0 | E144: =0.159+0.137+0.124+0.143 -> 0.563 | F144: =0.159+0.261 -> 0.42 | J144: 0.143 | K144: 0.143 | P144: 0.143
A145: 污泥 | B145: 772-006-49 | C145: 固态 | D145: 0 | J145: 0 | P145: 0
A146: 污泥 | B146: 772-006-49 | C146: 半固态 | D146: 0 | E146: =9.96+8.354 -> 18.314 | J146: 18.314 | L146: 18.314 | P146: 18.314
A147: 废活性炭 | B147: 900-039-49 | C147: 固态 | D147: 0 | E147: =1.788+0.0004 -> 1.7884 | F147: =1.788+0.0004 -> 1.7884 | J147: 0 | P147: 0
A148: 废水污泥 | B148: 900-046-49 | C148: 固态 | D148: 0 | J148: 0 | P148: 0
A149: 污泥 | B149: 900-046-49 | C149: 半固态 | D149: 0 | J149: 0 | P149: 0
A150: 过期化学药品 | B150: 900-047-49 | C150: 固态 | D150: 0 | J150: 0 | P150: 0
A151: 乙腈、异丙酮、废液 | B151: 900-047-49 | C151: 液态 | D151: 70.7584 | E151: =0.214+0.2+4.10468+7.3929+0.246 -> 12.15758 | F151: =4.259+2.086+8.0684+1.555+1.18 -> 17.1484 | G151: =8.296 -> 8.296 | J151: 57.47158 | L151: 57.47158 | P151: 57.47158
A152: 过期药品 | B152: 900-999-49 | C152: 固态 | D152: 0 | E152: =0.92 -> 0.92 | J152: 0.92 | K152: 0.92 | P152: 0.92
A153: 过期面膜原料、残液 | B153: 900-999-49 | C153: 液态 | D153: 29.48 | J153: 29.48 | L153: 29.48 | P153: 29.48
A154: 废催化剂 | B154: 261-152-50 | C154: 固态 | D154: 0 | J154: 0 | P154: 0
A155: 小计： | D155: 5608.66107 | E155: =SUM(E4:E154) -> 563.08979 | F155: 735.85101 | G155: 40.64055 | H155: 12.732 | I155: 0 | J155: 5382.5273 | K155: =SUM(K4:K154) -> 850.68 | L155: 1437.33548 | M155: 225.374 | N155: 2618.35782 | O155: 250.78 | P155: 5382.5273
A156: 合计： | F156: =F155+G155+H155 -> 789.22356
